fUST/lending_fUST_20240501
["ID","MTS","AMOUNT","RATE_DAILY","PERIOD"]
[324986307,1714495854004,-500.0,0.00032328,2]
[324986308,1714495854014,-4605.010962,0.00032328,2]
[324986309,1714495854023,-4605.01097187,0.00032328,2]
[324986310,1714495854033,-500.0,0.00032328,2]
[324986311,1714495854042,-605.25,0.00032328,2]
[324986312,1714495854051,-802.95,0.00032328,2]
[324986313,1714495854059,-1786.201299,0.00032328,2]
[324986314,1714495854069,-1786.201299,0.00032328,2]
[324986315,1714495854079,-1786.201299,0.00032328,2]
[324986316,1714495854089,-1786.201298,0.00032328,2]
[324986317,1714495854099,-654.97498,0.00032328,2]
[324986318,1714495854110,-654.97498,0.00032328,2]
[324986319,1714495854119,-500.0,0.00032328,2]
[324986320,1714495854128,-500.0,0.00032328,2]
[324986321,1714495854138,-500.0,0.00032328,2]
[324986322,1714495854147,-654.97498,0.00032328,2]
[324986323,1714495854263,-654.974972,0.00032328,2]
[324986324,1714495854273,-1524.93,0.00032328,2]
[324986325,1714495854283,-637.62,0.00032328,2]
[324986326,1714495854292,-1037.025108,0.00032328,2]
[324986327,1714495854302,-1037.025108,0.00032328,2]
[324986328,1714495854311,-263.84155,0.00032328,2]
[324986329,1714495854320,-263.84155,0.00032328,2]
[324986330,1714495854330,-263.84155,0.00032328,2]
[324986331,1714495854339,-1037.025108,0.00032328,2]
[324986332,1714495854350,-263.841557,0.00032328,2]
[324986333,1714495854359,-1037.02510983,0.00032328,2]
[324986334,1714495854369,-500.0,0.00032328,2]
[324986335,1714495854378,-500.0,0.00032328,2]
[324986336,1714495854390,-500.0,0.00032328,2]
[324986337,1714495854403,-500.0,0.00032328,2]
[324986338,1714495854412,-500.0,0.00032328,2]
[324986339,1714495854421,-539.55,0.00032328,2]
[324986340,1714495854430,-500.0,0.00032328,2]
[324986341,1714495854441,-500.0,0.00032328,2]
[324986342,1714495854450,-165.868718,0.00032328,2]
[324986343,1714495854459,-500.0,0.00032328,2]
[324986344,1714495854468,-165.868715,0.00032328,2]
[324986345,1714495854480,-924.63,0.00032328,2]
[324986346,1714495854490,-3587.0,0.00032328,2]
[324986347,1714495854499,-1150.13,0.00032328,2]
[324986348,1714495854509,-791.0,0.00032328,2]
[324986349,1714495854519,-500.0,0.00032328,2]
[324986350,1714495854528,-500.0,0.00032328,2]
[324986351,1714495854542,-500.0,0.00032328,2]
[324986352,1714495854551,-500.0,0.00032328,2]
[324986353,1714495854561,-862.88,0.00032328,2]
[324986354,1714495854570,-300.0,0.00032328,2]
[324986355,1714495854579,-500.0,0.00032328,2]
[324986356,1714495854588,-151.0,0.00032328,2]
[324986357,1714495854597,-151.0,0.00032328,2]
[324986358,1714495854607,-169.849495,0.00032328,2]
[324986359,1714495854616,-500.0,0.00032328,2]
[324986360,1714495854626,-854.56,0.00032328,2]
[324986361,1714495854635,-169.849491,0.00032328,2]
[324986362,1714495854644,-500.0,0.00032328,2]
[324986363,1714495854654,-647.71,0.00032328,2]
[324986364,1714495854663,-151.0,0.00032328,2]
[324986365,1714495854672,-151.0,0.00032328,2]
[324986366,1714495854682,-886.62,0.00032328,2]
[324986367,1714495854691,-364.65446932,0.00032328,2]
[324986368,1714495854700,-802.53,0.00032328,2]
[324986369,1714495854709,-483.421487,0.00032328,2]
[324986370,1714495854719,-500.0,0.00032328,2]
[324986371,1714495854728,-483.421487,0.00032328,2]
[324986372,1714495854738,-500.0,0.00032328,2]
[324986373,1714495854748,-483.421487,0.00032328,2]
[324986374,1714495854757,-151.0,0.00032328,2]
[324986375,1714495854767,-483.421495,0.00032328,2]
[324986376,1714495854776,-151.0,0.00032328,2]
[324986377,1714495854788,-513.33959173,0.00032328,2]
[324986378,1714495854797,-500.0,0.00032328,2]
[324986379,1714495854807,-500.0,0.00032328,2]
[324986380,1714495854816,-500.0,0.00032328,2]
[324986381,1714495854825,-289.503798,0.00032328,2]
[324986382,1714495854834,-289.503798,0.00032328,2]
[324986383,1714495854844,-713.44,0.00032328,2]
[324986384,1714495854853,-569.73,0.00032328,2]
[324986385,1714495854862,-289.503798,0.00032328,2]
[324986386,1714495854871,-289.503799,0.00032328,2]
[324986387,1714495854880,-504.02,0.00032328,2]
[324986388,1714495854889,-546.574025,0.00032328,2]
[324986389,1714495854899,-546.574025,0.00032328,2]
[324986390,1714495854909,-500.0,0.00032328,2]
[324986391,1714495854918,-157.48287745,0.00032328,2]
[324986392,1714495854927,-500.0,0.00032328,2]
[324986393,1714495854937,-546.574025,0.00032328,2]
[324986394,1714495854946,-546.57403,0.00032328,2]
[324986395,1714495854955,-500.0,0.00032328,2]
[324986396,1714495854964,-500.0,0.00032328,2]
[324986397,1714495854973,-628.8198716,0.00032328,2]
[324986398,1714495854982,-536.08,0.00032328,2]
[324986399,1714495854992,-500.0,0.00032328,2]
[324986400,1714495855001,-500.0,0.00032328,2]
[324986401,1714495855011,-500.0,0.00032328,2]
[324986402,1714495855020,-633.37,0.00032328,2]
[324986403,1714495855030,-500.0,0.00032328,2]
[324986404,1714495855042,-448.529765,0.00032328,2]
[324986405,1714495855051,-500.0,0.00032328,2]
[324986406,1714495855060,-500.0,0.00032328,2]
[324986407,1714495855070,-448.529757,0.00032328,2]
[324986408,1714495855079,-500.0,0.00032328,2]
[324986409,1714495855089,-476.00827288,0.00032328,2]
[324986410,1714495855098,-382.10459241,0.00032328,2]
[324986411,1714495855107,-500.0,0.00032328,2]
[324986412,1714495855116,-3304.47,0.00032328,2]
[324986413,1714495855126,-500.0,0.00032328,2]
[324986414,1714495855135,-3238.184608,0.00032328,2]
[324986415,1714495855144,-814.27,0.00032328,2]
[324986416,1714495855154,-500.0,0.00032328,2]
[324986417,1714495855163,-3238.18461265,0.00032328,2]
[324986418,1714495855172,-500.0,0.00032328,2]
[324986419,1714495855182,-618.81,0.00032328,2]
[324986420,1714495855191,-765.94,0.00032328,2]
[324986421,1714495855200,-500.0,0.00032328,2]
[324986422,1714495855209,-585.507136,0.00032328,2]
[324986423,1714495855219,-500.0,0.00032328,2]
[324986424,1714495855228,-779.16,0.00032328,2]
[324986425,1714495855238,-585.507135,0.00032328,2]
[324986426,1714495855247,-534.2,0.00032328,2]
[324986427,1714495855256,-500.0,0.00032328,2]
[324986428,1714495855265,-525.99263264,0.00032328,2]
[324986429,1714495855274,-500.0,0.00032328,2]
[324986430,1714495855285,-686.77,0.00032328,2]
[324986431,1714495855295,-500.0,0.00032328,2]
[324986432,1714495855304,-206.480256,0.00032328,2]
[324986433,1714495855313,-825.88,0.00032328,2]
[324986434,1714495855322,-206.480266,0.00032328,2]
[324986435,1714495855331,-500.0,0.00032328,2]
[324986436,1714495855342,-500.0,0.00032328,2]
[324986437,1714495855351,-500.0,0.00032328,2]
[324986438,1714495855359,-500.0,0.00032328,2]
[324986439,1714495855369,-500.0,0.00032328,2]
[324986440,1714495855378,-500.0,0.00032328,2]
[324986441,1714495855387,-563.62,0.00032328,2]
[324986442,1714495855397,-548.87,0.00032328,2]
[324986443,1714495855412,-500.0,0.00032328,2]
[324986444,1714495855422,-500.0,0.00032328,2]
[324986445,1714495855431,-1600.03,0.00032328,2]
[324986446,1714495855440,-500.0,0.00032328,2]
[324986447,1714495855449,-500.0,0.00032328,2]
[324986448,1714495855458,-500.0,0.00032328,2]
[324986449,1714495855467,-394.46612082,0.00032328,2]
[324986450,1714495855476,-500.0,0.00032328,2]
[324986451,1714495855486,-278.18314733,0.00032328,2]
[324986452,1714495855496,-500.0,0.00032328,2]
[324986453,1714495855505,-896.06,0.00032328,2]
[324986454,1714495855515,-151.0,0.00032328,2]
[324986455,1714495855524,-500.0,0.00032328,2]
[324986456,1714495855537,-500.0,0.00032328,2]
[324986457,1714495855546,-500.0,0.00032328,2]
[324986458,1714495855555,-500.0,0.00032328,2]
[324986459,1714495855565,-783.25,0.00032328,2]
[324986460,1714495855575,-1000.0,0.00032345,2]
[324986461,1714495855584,-500.0,0.00032394,2]
[324986462,1714495855593,-1000.0,0.00032403,2]
[324986463,1714495855603,-1000.0,0.00032416,2]
[324986464,1714495855612,-587.50995354,0.00032423,2]
[324986465,1714495855621,-237.9832,0.00032439,2]
[324986466,1714495855632,-786.09169393,0.00032441,6]
[324986467,1714495855641,-603.09535696,0.00032444,7]
[324986468,1714495855651,-1000.0,0.00032465,2]
[324986469,1714495855660,-1000.0,0.0003254,2]
[324986470,1714495855669,-1000.0,0.0003257,2]
[324986471,1714495855678,-1000.0,0.0003257,2]
[324986472,1714495855688,-287.0,0.000326,5]
[324986473,1714495855697,-177.0,0.000326,6]
[324986474,1714495855706,-150.0,0.000326,2]
[324986475,1714495855715,-1000.0,0.000326,10]
[324986476,1714495855725,-1176.7632,0.000326,2]
[324986477,1714495855734,-500.0,0.00032602,2]
[324986478,1714495855743,-500.0,0.00032602,2]
[324986479,1714495855752,-500.0,0.00032602,2]
[324986480,1714495855762,-500.0,0.00032602,2]
[324986481,1714495855771,-500.0,0.00032602,2]
[324986482,1714495855780,-500.0,0.00032602,2]
[324986483,1714495855790,-988.34,0.00032602,2]
[324986484,1714495855799,-179.21676421,0.00032602,2]
[324986485,1714495855808,-500.0,0.00032602,2]
[324986486,1714495855817,-500.0,0.00032602,2]
[324986487,1714495855826,-182.13363266,0.00032602,2]
[324986488,1714495855835,-185.3645537,0.00032602,2]
[324986489,1714495855844,-500.0,0.00032602,2]
[324986490,1714495855853,-500.0,0.00032602,2]
[324986491,1714495855862,-345.24510885,0.00032602,2]
[324986492,1714495855871,-500.0,0.00032602,2]
[324986493,1714495855880,-500.0,0.00032602,2]
[324986494,1714495855889,-508.33,0.00032602,2]
[324986495,1714495855899,-500.0,0.00032602,2]
[324986496,1714495855908,-500.0,0.00032602,2]
[324986497,1714495855917,-500.0,0.00032602,2]
[324986498,1714495855926,-500.0,0.00032602,2]
[324986499,1714495855935,-500.0,0.00032602,2]
[324986500,1714495855944,-500.0,0.00032602,2]
[324986501,1714495855953,-500.0,0.00032602,2]
[324986502,1714495855962,-500.0,0.00032602,2]
[324986503,1714495855972,-500.0,0.00032602,2]
[324986504,1714495855981,-510.98,0.00032602,2]
[324986505,1714495855990,-336.00966698,0.00032602,2]
[324986506,1714495855999,-500.0,0.00032602,2]
[324986507,1714495856008,-553.82,0.00032602,2]
[324986508,1714495856017,-538.18685467,0.00032602,2]
[324986509,1714495856026,-500.0,0.00032602,2]
[324986510,1714495856039,-500.0,0.00032602,2]
[324986511,1714495856048,-501.45490789,0.00032602,2]
[324986512,1714495856057,-500.0,0.00032602,2]
[324986513,1714495856067,-500.0,0.00032602,2]
[324986514,1714495856076,-500.0,0.00032602,2]
[324986515,1714495856085,-500.0,0.00032602,2]
[324986516,1714495856094,-820.04,0.00032602,2]
[324986517,1714495856103,-571.87,0.00032602,2]
[324986518,1714495856113,-840.9,0.00032602,2]
[324986519,1714495856122,-500.0,0.00032602,2]
[324986520,1714495856131,-500.0,0.00032602,2]
[324986521,1714495856140,-500.0,0.00032602,2]
[324986522,1714495856149,-712.99,0.00032602,2]
[324986523,1714495856158,-159.666456,0.00032602,2]
[324986524,1714495856167,-159.666464,0.00032602,2]
[324986525,1714495856177,-561.78,0.00032602,2]
[324986526,1714495856186,-502.78900828,0.00032602,2]
[324986527,1714495856194,-1553.91,0.00032602,2]
[324986528,1714495856203,-151.81257834,0.00032602,2]
[324986529,1714495856212,-500.0,0.00032602,2]
[324986530,1714495856221,-500.0,0.00032602,2]
[324986531,1714495856232,-500.0,0.00032602,2]
[324986532,1714495856241,-500.0,0.00032602,2]
[324986533,1714495856250,-500.0,0.00032602,2]
[324986534,1714495856259,-515.37010951,0.00032602,2]
[324986535,1714495856268,-500.0,0.00032602,2]
[324986536,1714495856277,-170.62705614,0.00032602,2]
[324986537,1714495856290,-984.47,0.00032602,2]
[324986538,1714495856299,-500.0,0.00032602,2]
[324986539,1714495856309,-500.0,0.00032602,2]
[324986540,1714495856320,-500.0,0.00032602,2]
[324986541,1714495856329,-558.86,0.00032602,2]
[324986542,1714495856338,-500.0,0.00032602,2]
[324986543,1714495856347,-500.0,0.00032602,2]
[324986544,1714495856356,-500.0,0.00032602,2]
[324986545,1714495856366,-500.0,0.00032602,2]
[324986546,1714495856375,-500.0,0.00032602,2]
[324986547,1714495856384,-658.2,0.00032602,2]
[324986548,1714495856395,-500.0,0.00032602,2]
[324986549,1714495856405,-500.0,0.00032602,2]
[324986550,1714495856414,-500.0,0.00032602,2]
[324986551,1714495856423,-945.94,0.00032602,2]
[324986552,1714495856432,-500.0,0.00032602,2]
[324986553,1714495856442,-580.31,0.00032602,2]
[324986554,1714495856451,-500.0,0.00032602,2]
[324986555,1714495856460,-604.98,0.00032602,2]
[324986556,1714495856469,-500.0,0.00032602,2]
[324986557,1714495856479,-500.0,0.00032602,2]
[324986558,1714495856489,-500.0,0.00032602,2]
[324986559,1714495856498,-604.9,0.00032602,2]
[324986560,1714495856507,-500.0,0.00032602,2]
[324986561,1714495856517,-500.0,0.00032602,2]
[324986562,1714495856526,-664.79,0.00032602,2]
[324986563,1714495856539,-500.0,0.00032602,2]
[324986564,1714495856548,-500.0,0.00032602,2]
[324986565,1714495856557,-500.0,0.00032602,2]
[324986566,1714495856565,-500.0,0.00032602,2]
[324986567,1714495856575,-500.0,0.00032602,2]
[324986568,1714495856583,-509.59,0.00032602,2]
[324986569,1714495856593,-592.02,0.00032602,2]
[324986570,1714495856602,-632.41,0.00032602,2]
[324986571,1714495856612,-501.87159403,0.00032602,2]
[324986572,1714495856621,-500.0,0.00032602,2]
[324986573,1714495856630,-500.0,0.00032602,2]
[324986574,1714495856640,-500.0,0.00032602,2]
[324986575,1714495856760,-500.0,0.00032602,2]
[324986576,1714495856770,-500.0,0.00032602,2]
[324986577,1714495856780,-500.0,0.00032602,2]
[324986578,1714495856793,-605.7,0.00032602,2]
[324986579,1714495856803,-500.0,0.00032602,2]
[324986580,1714495856813,-500.0,0.00032602,2]
[324986581,1714495856823,-500.95072127,0.00032602,2]
[324986582,1714495856833,-500.0,0.00032602,2]
[324986583,1714495856843,-500.0,0.00032602,2]
[324986584,1714495856852,-500.0,0.00032602,2]
[324986585,1714495856861,-500.0,0.00032602,2]
[324986586,1714495856871,-500.0,0.00032602,2]
[324986587,1714495856881,-500.0,0.00032602,2]
[324986588,1714495856890,-500.0,0.00032602,2]
[324986589,1714495856899,-500.0,0.00032602,2]
[324986590,1714495856908,-500.0,0.00032602,2]
[324986591,1714495856918,-497.89974434,0.00032602,2]
[324986592,1714495856927,-500.0,0.00032602,2]
[324986593,1714495856937,-922.2,0.00032602,2]
[324986594,1714495856946,-583.9,0.00032602,2]
[324986595,1714495856956,-500.0,0.00032602,2]
[324986596,1714495856966,-845.52,0.00032602,2]
[324986597,1714495856975,-500.0,0.00032602,2]
[324986598,1714495856985,-500.0,0.00032602,2]
[324986599,1714495856994,-637.22,0.00032602,2]
[324986600,1714495857003,-500.0,0.00032602,2]
[324986601,1714495857012,-500.0,0.00032602,2]
[324986602,1714495857022,-500.0,0.00032602,2]
[324986603,1714495857031,-201.26376216,0.00032602,2]
[324986604,1714495857045,-1092.6,0.00032602,2]
[324986605,1714495857055,-500.0,0.00032602,2]
[324986606,1714495857064,-500.0,0.00032602,2]
[324986607,1714495857073,-500.0,0.00032602,2]
[324986608,1714495857082,-326.34223685,0.00032602,2]
[324986609,1714495857091,-500.0,0.00032602,2]
[324986610,1714495857100,-173.81823423,0.00032602,2]
[324986611,1714495857108,-610.12,0.00032602,2]
[324986612,1714495857118,-500.0,0.00032602,2]
[324986613,1714495857127,-500.0,0.00032602,2]
[324986614,1714495857136,-533.31,0.00032602,2]
[324986615,1714495857147,-500.0,0.00032602,2]
[324986616,1714495857159,-500.0,0.00032602,2]
[324986617,1714495857168,-500.0,0.00032602,2]
[324986618,1714495857178,-500.0,0.00032602,2]
[324986619,1714495857187,-500.0,0.00032602,2]
[324986620,1714495857196,-500.0,0.00032602,30]
[324986621,1714495857205,-503.26541033,0.00032602,2]
[324986622,1714495857215,-500.0,0.00032602,2]
[324986623,1714495857224,-500.0,0.00032602,2]
[324986624,1714495857234,-500.0,0.00032602,2]
[324986625,1714495857243,-178.64436234,0.00032602,2]
[324986626,1714495857252,-500.0,0.00032602,2]
[324986627,1714495857261,-605.25,0.00032602,2]
[324986628,1714495857270,-802.95,0.00032602,2]
[324986629,1714495857279,-500.0,0.00032602,2]
[324986630,1714495857292,-500.0,0.00032602,2]
[324986631,1714495857301,-1524.93,0.00032602,2]
[324986632,1714495857311,-637.62,0.00032602,2]
[324986633,1714495857319,-500.0,0.00032602,2]
[324986634,1714495857328,-500.0,0.00032602,2]
[324986635,1714495857337,-500.0,0.00032602,2]
[324986636,1714495857347,-500.0,0.00032602,2]
[324986637,1714495857356,-500.0,0.00032602,2]
[324986638,1714495857365,-539.55,0.00032602,2]
[324986639,1714495857374,-500.0,0.00032602,2]
[324986640,1714495857383,-500.0,0.00032602,2]
[324986641,1714495857394,-500.0,0.00032602,2]
[324986642,1714495857404,-924.63,0.00032602,2]
[324986643,1714495857414,-3587.0,0.00032602,2]
[324986644,1714495857423,-1150.13,0.00032602,2]
[324986645,1714495857432,-791.0,0.00032602,2]
[324986646,1714495857443,-172.68244233,0.00032602,2]
[324986647,1714495857452,-500.0,0.00032602,2]
[324986648,1714495857461,-500.0,0.00032602,2]
[324986649,1714495857470,-500.0,0.00032602,2]
[324986650,1714495857482,-862.88,0.00032602,2]
[324986651,1714495857491,-300.0,0.00032602,2]
[324986652,1714495857500,-500.0,0.00032602,2]
[324986653,1714495857510,-500.0,0.00032602,2]
[324986654,1714495857519,-854.56,0.00032602,2]
[324986655,1714495857528,-500.0,0.00032602,2]
[324986656,1714495857540,-647.71,0.00032602,2]
[324986657,1714495857549,-886.62,0.00032602,2]
[324986658,1714495857558,-802.53,0.00032602,2]
[324986659,1714495857567,-500.0,0.00032602,2]
[324986660,1714495857576,-500.0,0.00032602,2]
[324986661,1714495857586,-500.0,0.00032602,2]
[324986662,1714495857595,-500.0,0.00032602,2]
[324986663,1714495857606,-500.0,0.00032602,2]
[324986664,1714495857615,-713.44,0.00032602,2]
[324986665,1714495857624,-569.73,0.00032602,2]
[324986666,1714495857634,-504.02,0.00032602,2]
[324986667,1714495857644,-500.0,0.00032602,2]
[324986668,1714495857654,-500.0,0.00032602,2]
[324986669,1714495857663,-500.0,0.00032602,2]
[324986670,1714495857673,-500.0,0.00032602,2]
[324986671,1714495857682,-536.08,0.00032602,2]
[324986672,1714495857692,-500.0,0.00032602,2]
[324986673,1714495857701,-500.0,0.00032602,2]
[324986674,1714495857711,-500.0,0.00032602,2]
[324986675,1714495857721,-633.37,0.00032602,2]
[324986676,1714495857730,-500.0,0.00032602,2]
[324986677,1714495857741,-500.0,0.00032602,2]
[324986678,1714495857750,-500.0,0.00032602,2]
[324986679,1714495857759,-500.0,0.00032602,2]
[324986680,1714495857768,-500.0,0.00032602,2]
[324986681,1714495857778,-3304.47,0.00032602,2]
[324986682,1714495857790,-500.0,0.00032602,2]
[324986683,1714495857799,-814.27,0.00032602,2]
[324986684,1714495857809,-500.0,0.00032602,2]
[324986685,1714495857818,-500.0,0.00032602,2]
[324986686,1714495857828,-618.81,0.00032602,2]
[324986687,1714495857837,-765.94,0.00032602,2]
[324986688,1714495857847,-500.0,0.00032602,2]
[324986689,1714495857857,-500.0,0.00032602,2]
[324986690,1714495857866,-779.16,0.00032602,2]
[324986691,1714495857876,-534.2,0.00032602,2]
[324986692,1714495857885,-500.0,0.00032602,2]
[324986693,1714495857894,-500.0,0.00032602,2]
[324986694,1714495857904,-686.77,0.00032602,2]
[324986695,1714495857912,-500.0,0.00032602,2]
[324986696,1714495857922,-825.88,0.00032602,2]
[324986697,1714495857931,-500.0,0.00032602,2]
[324986698,1714495857940,-500.0,0.00032602,2]
[324986699,1714495857950,-500.0,0.00032602,2]
[324986700,1714495857959,-500.0,0.00032602,2]
[324986701,1714495857969,-500.0,0.00032602,2]
[324986702,1714495857978,-500.0,0.00032602,2]
[324986703,1714495857987,-563.62,0.00032602,2]
[324986704,1714495857997,-548.87,0.00032602,2]
[324986705,1714495858006,-500.0,0.00032602,2]
[324986706,1714495858015,-500.0,0.00032602,2]
[324986707,1714495858025,-1600.03,0.00032602,2]
[324986708,1714495858035,-500.0,0.00032602,2]
[324986709,1714495858044,-500.0,0.00032602,2]
[324986710,1714495858053,-500.0,0.00032602,2]
[324986711,1714495858062,-500.0,0.00032602,2]
[324986712,1714495858071,-634.81599493,0.00032602,2]
[324986713,1714495858080,-896.06,0.00032602,2]
[324986714,1714495858089,-500.0,0.00032602,2]
[324986715,1714495858098,-500.0,0.00032602,2]
[324986716,1714495858107,-500.0,0.00032602,2]
[324986717,1714495858116,-500.0,0.00032602,2]
[324986718,1714495858125,-783.25,0.00032602,2]
[324986719,1714495858134,-150.0,0.00032778,2]
[324986720,1714495858143,-1000.0,0.000328,30]
[324986721,1714495858153,-1006.0,0.00032807,10]
[324986722,1714495858162,-1006.0,0.00032807,10]
[324986723,1714495858171,-1006.0,0.00032807,10]
[324986724,1714495858180,-1006.0,0.00032807,10]
[324986725,1714495858189,-1006.0,0.00032807,10]
[324986726,1714495858199,-1006.0,0.00032807,10]
[324986727,1714495858208,-1006.0,0.00032807,10]
[324986728,1714495858218,-1006.0,0.00032807,10]
[324986729,1714495858227,-1006.0,0.00032807,10]
[324986730,1714495858236,-1006.0,0.00032807,10]
[324986731,1714495858245,-1006.0,0.00032807,10]
[324986732,1714495858255,-1006.0,0.00032807,10]
[324986733,1714495858264,-1006.0,0.00032807,10]
[324986734,1714495858273,-1006.0,0.00032807,10]
[324986735,1714495858282,-1006.0,0.00032807,10]
[324986736,1714495858295,-1097.686567,0.00032807,10]
[324986737,1714495858303,-10000.0,0.00032807,60]
[324986738,1714495858312,-2130.63789699,0.00032807,2]
[324986739,1714495858321,-2868.04223041,0.00032807,2]
[324986740,1714495858330,-1003.5114668,0.00032807,2]
[324986741,1714495858339,-14401.0492148,0.00032807,2]
[324986742,1714495858349,-977.78497557,0.00032807,2]
[324986743,1714495858359,-153.40602022,0.00032807,2]
[324986744,1714495858368,-153.40602022,0.00032807,2]
[324986745,1714495858377,-153.40602022,0.00032807,2]
[324986746,1714495858386,-500.0,0.00032876,2]
[324986747,1714495858399,-389.48625558,0.00032876,2]
[324986748,1714495858408,-227.7699957,0.00032876,2]
[324986749,1714495858417,-500.0,0.00032876,2]
[324986750,1714495858427,-988.34,0.00032876,2]
[324986751,1714495858437,-500.0,0.00032876,2]
[324986752,1714495858446,-500.0,0.00032876,2]
[324986753,1714495858456,-500.0,0.00032876,2]
[324986754,1714495858465,-500.0,0.00032876,2]
[324986755,1714495858478,-500.0,0.00032876,2]
[324986756,1714495858488,-500.0,0.00032876,2]
[324986757,1714495858498,-508.33,0.00032876,2]
[324986758,1714495858507,-500.0,0.00032876,2]
[324986759,1714495858516,-500.0,0.00032876,2]
[324986760,1714495858525,-500.0,0.00032876,2]
[324986761,1714495858536,-500.0,0.00032876,2]
[324986762,1714495858545,-500.0,0.00032876,2]
[324986763,1714495858554,-500.0,0.00032876,2]
[324986764,1714495858563,-500.0,0.00032876,2]
[324986765,1714495858573,-500.0,0.00032876,2]
[324986766,1714495858583,-510.98,0.00032876,2]
[324986767,1714495858591,-500.0,0.00032876,2]
[324986768,1714495858601,-553.82,0.00032876,2]
[324986769,1714495858610,-500.0,0.00032876,2]
[324986770,1714495858620,-500.0,0.00032876,2]
[324986771,1714495858630,-500.0,0.00032876,2]
[324986772,1714495858639,-500.0,0.00032876,2]
[324986773,1714495858648,-500.0,0.00032876,2]
[324986774,1714495858658,-500.0,0.00032876,2]
[324986775,1714495858666,-820.04,0.00032876,2]
[324986776,1714495858676,-571.87,0.00032876,2]
[324986777,1714495858685,-840.9,0.00032876,2]
[324986778,1714495858694,-500.0,0.00032876,2]
[324986779,1714495858704,-500.0,0.00032876,2]
[324986780,1714495858714,-605.64755963,0.00032876,2]
[324986781,1714495858723,-712.99,0.00032876,2]
[324986782,1714495858733,-561.78,0.00032876,2]
[324986783,1714495858742,-1553.91,0.00032876,2]
[324986784,1714495858751,-500.0,0.00032876,2]
[324986785,1714495858760,-500.0,0.00032876,2]
[324986786,1714495858769,-500.0,0.00032876,2]
[324986787,1714495858779,-500.0,0.00032876,2]
[324986788,1714495858790,-500.0,0.00032876,2]
[324986789,1714495858799,-984.47,0.00032876,2]
[324986790,1714495858808,-500.0,0.00032876,2]
[324986791,1714495858818,-500.0,0.00032876,2]
[324986792,1714495858827,-500.0,0.00032876,2]
[324986793,1714495858836,-558.86,0.00032876,2]
[324986794,1714495858846,-500.0,0.00032876,2]
[324986795,1714495858855,-500.0,0.00032876,2]
[324986796,1714495858864,-500.0,0.00032876,2]
[324986797,1714495858874,-500.0,0.00032876,2]
[324986798,1714495858883,-500.0,0.00032876,2]
[324986799,1714495858892,-658.2,0.00032876,2]
[324986800,1714495858902,-500.0,0.00032876,2]
[324986801,1714495858911,-500.0,0.00032876,2]
[324986802,1714495858921,-500.0,0.00032876,2]
[324986803,1714495858930,-945.94,0.00032876,2]
[324986804,1714495858939,-500.0,0.00032876,2]
[324986805,1714495858949,-500.0,0.00032876,14]
[324986806,1714495858958,-580.31,0.00032876,2]